Cogmind - Beta 13 @@@ ROGUE MODE // 2024.07.25 @ 00:23:11 Player: Necoji Result: Destroyed by S-10 Pest with Light Assault Rifle Performance ------------- Evolutions (1) 500 Regions Visited (3) 600 Robots Destroyed (4) 20 Value Destroyed (146) 146 Prototype IDs (0) 0 Alien Tech Used (0) 0 Bonus (200) 200 TOTAL SCORE: 1466 Bonus ------- Pacifist 200 Cogmind --------- Core Integrity 0/400 Matter 279/300 Energy 250/250 System Corruption 3% Temperature Cool (0) Movement Rolling (200) Ox8 Location -9/Materials Parts ------- > --- POWER (2) -------- Ion Engine > --- PROPULSION (2) --- Wheel > --- UTILITY (3) ------ Huge Storage Unit > --- WEAPON (2) ------- (None) > --- INVENTORY (25) --- Light Ion Engine Large Storage Unit Medium Matter Pod (100) Medium Matter Pod (74) Medium Matter Pod (0) Medium Matter Pod (0) Terrain Scan Processor Improved Targeting Computer ECM Suite Medium Armor Plating Field Recycling Unit (0) Datajack Peak State ------------ > --- POWER ------------ Ion Engine > --- PROPULSION ------- Wheel Wheel > --- UTILITY ---------- Huge Storage Unit Sensor Array ECM Suite > --- WEAPON ----------- Light Assault Rifle Grenade Launcher > --- INVENTORY -------- Light Ion Engine Wheel Medium Matter Pod Medium Matter Pod Medium Matter Pod Medium Matter Pod Terrain Scan Processor Field Recycling Unit Datajack [Rating: 9] Favorites ----------- Power Ion Engine Engine Ion Engine Propulsion Wheel Treads Light Treads Wheel Wheel Utility Huge Storage Unit Device Sensor Array Storage Huge Storage Unit Weapon Assault Rifle Energy Gun EM Pulse Gun Ballistic Gun Assault Rifle Launcher Grenade Launcher Build | -11 -10 -10 -9 ------- Run | Yrd Mat Min Mat Slots Evolved 2 | . . . 2 Power 1 | . . . 1 Propulsion . | . . . . Utility 1 | . . . 1 Weapon . | . . . . Parts Attached 21 | 5 1 7 8 Power 5 | 2 . 1 2 Engine 5 | 2 . 1 2 Core . | . . . . Reactor . | . . . . Propulsion 8 | 2 . 3 3 Treads 1 | . . 1 . Leg . | . . . . Wheel 7 | 2 . 2 3 Hover . | . . . . Flight . | . . . . Utility 4 | 1 1 1 1 Device 2 | . . 1 1 Storage 2 | 1 1 . . Processor . | . . . . Hackware . | . . . . Protection . | . . . . Artifact . | . . . . Weapon 4 | . . 2 2 Energy Gun 1 | . . 1 . Energy Cannon . | . . . . Ballistic Gun 2 | . . 1 1 Ballistic Cannon . | . . . . Launcher 1 | . . . 1 Special Weapon . | . . . . Impact Weapon . | . . . . Slashing Weapon . | . . . . Piercing Weapon . | . . . . Special Melee Weapon . | . . . . Unidentified Prototypes . | . . . . Parts Lost 15 | . . 6 9 Power 3 | . . 1 2 Propulsion 6 | . . 3 3 Utility 2 | . . . 2 Weapon 4 | . . 2 2 Highest Loss Streak 4 | . . 4 4 To Critical Strikes . | . . . . Average Slot Usage (%) 61 | . 58 66 59 Engine 13 | . 14 13 13 Treads 1 | . . 4 . Wheel 13 | . 28 13 10 Device 13 | . . 10 18 Storage 12 | . 15 14 11 Ballistic Gun 3 | . . 8 1 Launcher 2 | . . . 4 Naked Turns . | . . . . Heaviest Build 92 | 8 88 88 92 Greatest Support 32 | 32 32 32 20 Greatest Overweight (x) 9 | . 2 8 9 Average Overweight (x) 5 | . 1 4 8 Largest Inventory Capacity 25 | 8 25 25 25 Average Capacity 23 | 5 23 25 25 Most Carried 14 | 5 13 14 13 Average Carried 10 | 3 8 11 11 Final Capacity 25 | 8 25 25 25 Final Carried 14 | 5 13 14 12 Class Distribution -------------------- 100% | Mutant Dominant Class ---------------- Mutant | -10/Materials Mutant | -10/Mines Mutant | -9/Materials Resources | -11 -10 -10 -9 ----------- Run | Yrd Mat Min Mat Matter Collected 544 | 209 . 285 50 Remotely . | . . . . Salvage Created 190 | . . 76 114 Parts 6 | . . . 6 Haulers Intercepted . | . . . . Recyclers Shooed . | . . . . Parts Field Recycled . | . . . . Retrieved Matter . | . . . . Parts Self-Destructed . | . . . . Prevented . | . . . . Kills | -11 -10 -10 -9 ------- Run | Yrd Mat Min Mat Combat Hostiles Destroyed 8 | . . 4 4 Melee 1 | . . . 1 Guns 4 | . . 4 . AOE 3 | . . . 3 Classes Destroyed 2 | . . 1 1 Grunt 4 | . . . 4 Assembled 4 | . . 4 . Best Kill Streak 3 | . . 2 3 Combat Bots Only 3 | . . 2 3 Max Kills in Single Turn 2 | . . 1 2 Gunslinging . | . . . . Exploded 2 | . . . 2 Melee 1 | . . . 1 Uniques/NPCs Destroyed . | . . . . Combat | -11 -10 -10 -9 -------- Run | Yrd Mat Min Mat Hostile Shots Fired 161 | . . 51 110 Missed 45 | . . 13 32 Damage Taken 1493 | . . 565 928 Core 619 | . . 218 401 Absorbed by Shields . | . . . . Core Remaining (%) 56 | 100 . 12 . Volleys Fired 25 | . . 14 11 Largest 2 | . . 2 2 Hottest 60 | . . 60 50 Shots Fired 35 | . . 22 13 Gun 24 | . . 22 2 Cannon . | . . . . Launcher 11 | . . . 11 Special . | . . . . Kinetic 16 | . . 14 2 Thermal . | . . . . Explosive 11 | . . . 11 Electromagnetic 8 | . . 8 . Robot Hit Streak 3 | . . 2 3 Robot Miss Streak 4 | . . 4 1 Penetration Max . | . . . . Secondary Targets 1 | . . 1 . Max Gunslinging Chain 1 | . . 1 . Shots Hit Robots 16 | . . 9 7 Core Hits 27 | . . 12 15 Critical Kills . | . . . . Critical Parts Destroyed . | . . . . Critical Strikes . | . . . . Melee Attacks . | . . . . Impact . | . . . . Slashing . | . . . . Piercing . | . . . . Sneak Attacks . | . . . . Combat Hostiles . | . . . . Follow-up Attacks . | . . . . Damage Inflicted 817 | . . 178 639 Guns 121 | . . 111 10 Cannons . | . . . . Explosions 534 | . . . 534 Melee . | . . . . Ramming 162 | . . 67 95 Kinetic 99 | . . 89 10 Thermal . | . . . . Explosive 534 | . . . 534 Electromagnetic 22 | . . 22 . Impact . | . . . . Slashing . | . . . . Piercing . | . . . . Highest Corruption 3 | . . 2 3 Average Corruption 1 | . . 2 1 Corruption Purged . | . . . . Corruption Blocked . | . . . . Effects 5 | . . 2 3 Matter Fused 1 | . . 1 . Data Loss (major) 3 | . . 1 2 Misfires 1 | . . . 1 Overload Shots . | . . . . Overflow Damage 81 | . . . 81 Projectiles . | . . . . Explosions 81 | . . . 81 Melee . | . . . . Knockbacks 1 | . . . 1 Impact 1 | . . . 1 Kinetic . | . . . . Secondary . | . . . . Self-Inflicted Damage 103 | . . 31 72 Shots 1 | . . . 1 Rammed 30 | . . 8 22 Targets Rammed 30 | . . 8 22 Kicked . | . . . . Crushed . | . . . . Highest Temperature 115 | . . 115 16 Average Temperature 67 | . . 75 7 Received Heat Transfer 762 | . . 300 462 Siege Activations . | . . . . Robots Corrupted . | . . . . Combat Hostiles . | . . . . Parts Fried . | . . . . Impact Corruptions . | . . . . Robots Melted . | . . . . Combat Hostiles . | . . . . Parts Melted . | . . . . Heat Transferred . | . . . . Parts Sabotaged . | . . . . Parts Stolen . | . . . . Parts Stripped . | . . . . Power Chain Reactions . | . . . . Alert | -11 -10 -10 -9 ------- Run | Yrd Mat Min Mat Peak Influence 106 | . . . 106 Initial . | . . . . Average 11 | . . . 23 Maximum Alert Level . | . . . . Low Security (%) 100 | 100 100 100 100 Level 1 . | . . . . Level 2 . | . . . . Level 3 . | . . . . Level 4 . | . . . . Level 5 . | . . . . High Security . | . . . . Max Security . | . . . . Squads Dispatched 2 | . . . 2 Investigation 1 | . . . 1 Extermination . | . . . . Reinforcement 1 | . . . 1 Assault . | . . . . Garrison . | . . . . Intercept . | . . . . Searches Triggered . | . . . . Construction Impeded . | . . . . Haulers Reinforced . | . . . . Active Scanning Responses . | . . . . Cargo Convoy Interrupts . | . . . . Stealth | -11 -10 -10 -9 --------- Run | Yrd Mat Min Mat Distress Signals 2 | . . 1 1 Communications Jammed . | . . . . Distress Signals . | . . . . Times Spotted 16 | . . 8 8 Peak Tracking Total 4 | . . 4 4 Tactical Retreats 4 | . . 3 1 Traps | -11 -10 -10 -9 ------- Run | Yrd Mat Min Mat Traps Triggered . | . . . . Indirectly . | . . . . Trap Hack Attempts . | . . . . Triggered . | . . . . Disarmed . | . . . . Reprogrammed . | . . . . Reused . | . . . . Traps Extracted . | . . . . Installed . | . . . . Triggered . | . . . . Machines | -11 -10 -10 -9 ---------- Run | Yrd Mat Min Mat Machines Disabled 1 | . . . 1 Max in Single Turn 1 | . . . 1 Machines Repaired . | . . . . Machines Dismantled . | . . . . Machines Sabotaged . | . . . . Overloaded Fab Kills . | . . . . Hacking | -11 -10 -10 -9 --------- Run | Yrd Mat Min Mat Machines Accessed 1 | . . . 1 Terminals . | . . . . Fabricators . | . . . . Repair Stations 1 | . . . 1 Recycling Units . | . . . . Scanalyzers . | . . . . Garrison Access . | . . . . Total Hacks 2 | . . . 2 Successful . | . . . . Failed 2 | . . . 2 Catastrophic 1 | . . . 1 Database Lockouts . | . . . . Manual . | . . . . Terminals . | . . . . Fabricators . | . . . . Repair Stations 2 | . . . 2 Recycling Units . | . . . . Scanalyzers . | . . . . Garrison Access . | . . . . Terminal Hacks . | . . . . Fabricator Hacks . | . . . . Repair Station Hacks . | . . . . Recycling Unit Hacks . | . . . . Scanalyzer . | . . . . Garrison Access Hacks . | . . . . Unauthorized Hacks . | . . . . Terminals . | . . . . Fabricators . | . . . . Repair Stations . | . . . . Recycling Units . | . . . . Scanalyzers . | . . . . Garrison Access . | . . . . Data Cores Recovered . | . . . . Used . | . . . . Hacking Detections 1 | . . . 1 Full Trace Events 1 | . . . 1 Feedback Events . | . . . . Feedback Blocked . | . . . . Robot Schematics Acquired . | . . . . Robots Built . | . . . . Authchips . | . . . . Time . | . . . . Total Robot Build Rating . | . . . . Part Schematics Acquired . | . . . . Parts Built . | . . . . Authchips . | . . . . Time . | . . . . Total Part Build Rating . | . . . . Parts Repaired . | . . . . Time . | . . . . Parts Recycled . | . . . . Recycled Matter . | . . . . Retrieved Matter . | . . . . Retrieved Components . | . . . . Parts Scanalyzed . | . . . . Part Schematics Acquired . | . . . . Parts Damaged . | . . . . Bothacking | -11 -10 -10 -9 ------------ Run | Yrd Mat Min Mat Used RIF Installer . | . . . . Robots Hacked . | . . . . Non-combat . | . . . . Combat . | . . . . Robot Hacks Applied . | . . . . Relay Couplers Released . | . . . . Fabnet Peak Effective % . | . . . . Robots Rewired . | . . . . Allies Hacked . | . . . . Hacks Repelled . | . . . . Allies | -11 -10 -10 -9 -------- Run | Yrd Mat Min Mat Total Allies . | . . . . Largest Group . | . . . . Highest-Rated Group . | . . . . Highest-Rated Ally . | . . . . Total Orders . | . . . . Ally Attacks . | . . . . Total Damage . | . . . . Kills . | . . . . Allies Corrupted . | . . . . Allies Melted . | . . . . Intel | -11 -10 -10 -9 ------- Run | Yrd Mat Min Mat Robot Analysis Total . | . . . . Derelict Logs Recovered . | . . . . Drone Launches . | . . . . Drone Recoveries . | . . . . Exploration | -11 -10 -10 -9 ------------- Run | Yrd Mat Min Mat Turns Passed 1472 | 79 162 506 725 Spaces Moved 643 | 67 121 213 242 Core 3 | 3 . . . Treads 29 | . . 29 . Legs . | . . . . Wheels 611 | 64 121 184 242 Hover . | . . . . Flight . | . . . . Fastest Speed 50 | 50 100 130 140 Average Speed 179 | 97 125 203 207 Slowest Speed 480 | 100 130 480 215 Overloaded Moves . | . . . . Propulsion Burnouts . | . . . . Robots Hopped . | . . . . Cave-ins Triggered . | . . . . Exploration Rate (%) 21 | 4 19 44 18 Regions Visited 3 Branch Regions 1 Pre-discovered Areas . | . . . . Known Exits Taken . | . . . . Unknown Exits Taken 3 | 1 1 1 . Scrap Searched . | . . . . Spaces Dug . | . . . . Terrain Destroyed 47 | . . . 47 Melee . | . . . . Projectile . | . . . . AOE 47 | . . . 47 Terrain Rammed . | . . . . Walls Destroyed . | . . . . Machines Disabled . | . . . . Actions | -11 -10 -10 -9 --------- Run | Yrd Mat Min Mat Total 857 | 80 132 262 383 Wait 106 | . . 12 94 Move 640 | 66 120 212 242 Hop . | . . . . Pick Up 31 | 8 9 8 6 Fast Attach 2 | 2 . . . Attach 19 | 3 1 7 8 Detach 1 | . 1 . . Swap . | . . . . Drop 3 | 1 1 1 . Fire 25 | . . 14 11 Melee . | . . . . Ram 30 | . . 8 22 Kick . | . . . . Crush . | . . . . Escape Stasis . | . . . . Rewire . | . . . . Trap . | . . . . Miscellaneous . | . . . . Route ------- -11/Scrapyard -10/Materials -10/Mines -9/Materials History --------- Turn | Location | Event 20 | -11/Scrapyard | Discovered new exit (range 15) 80 | -11/Scrapyard | Entered Materials 143 | -10/Materials | Discovered new exit (range 7) 242 | -10/Materials | Entered Mines 251 | -10/Mines | Assembled infested the area 257 | -10/Mines | Met a Derelict bent on vengeance 307 | -10/Mines | Build established: Mutant 320 | -10/Mines | Core integrity fell below 50% 363 | -10/Mines | Lost 4 parts (1p2n1w) 617 | -10/Mines | Core integrity fell below 20% 724 | -10/Mines | Discovered new exit (range 11) 748 | -10/Mines | Entered Materials 748 | -9/Materials | Evolved 2 slots: Power x1, Utility x1 1053 | -9/Materials | Lost 4 parts (1p2n1w) 1325 | -9/Materials | Core integrity fell below 50% 1363 | -9/Materials | Core integrity fell below 20% 1367 | -9/Materials | Lost 4 parts (1p1n1u1w) 1473 | -9/Materials | Destroyed by S-10 Pest with Light Assault Rifle Last Messages --------------- 01348_ M-13 Machinist repairs G-34 Mercenary. 01350_ U-05 Engineer lays Concrete. 01356_ U-05 Engineer builds a Wall. 01357_ Slammed into G-34 Mercenary. 01360_ U-05 Engineer lays Concrete. 01363_ M-13 Machinist repairs G-34 Mercenary. 01363_ U-05 Engineer lays Concrete. 01368_ U-05 Engineer builds a Wall. 01391_ Broken ECM Suite destroyed. 01402_ Acquired Imp. Targeting Computer. 01405_ Slammed into G-34 Mercenary. 01405_ U-05 Engineer lays Concrete. 01406_ Slammed into G-34 Mercenary. 01406_ G-34 Mercenary destroyed. 01408_ Acquired 50 matter. 01411_ System corrupted: Substantial component data lost. 01412_ Acquired Ion Engine. 01425_ U-05 Engineer lays Concrete. 01438_ R-06 Scavenger collects Aluminum Leg. 01472_ K-01 Serf cleans the Processing Tank. Map ----- +----------------------------------------------------+ | ???## ##+#####?????## | | ????## ######### | | ???### # ### | | ?### #### # """ #?# # | | ?# # #=""" #?# # # | | # / +=""" #?# # | | ## # # #?# | | ?# " # # #?## | | ?# "" # ########??# | | ?# # #?????????# # | | ?######## #????######+## #### | | ????????# #????# # ### | | ?######?# #????# # | | ?# # #????# # | | ?# # #????# # | | ?# + ###### # ### | | ?# """ # # ## ##?? | | ?# """ # + ## #??? | | ?# """?# ## ## #??? | | ?######## ## ## /??? | | # # ## ## #??? | | ? """"" + ## ## #??? | | # """""k# ## ## #??? | | # """""s## ## # ??? | | # ## ######### ??? | | # """""@## #???????# ??? | | # """"" ## #???????# ??? | | ? """"" ## #???????# ??? | | # ## #???????## #??? | | # ## #????????? ???? | | # ## #???????????????? | | ########## #???????????????? | | ?????????? #???????????????? | | ??????????? #???????????????? | | ??????????? #???????????????? | | ????????????? ?????????????????? | | ???????????????????????????????? | | ???????????????????????????????? | | ???????????????????????????????? | | ???????????????????????????????? | | ???????????????????????????????? | | ???????????????????????????????? | | ???????????????????????????????? | | ???????????????????????????????? | | ???????????????????????????????? | | ???????????????????????????????? | | ???????????????????????????????? | | ???????????????????????????????? | | ???????????????????????????????? | | ???????????????????????????????? | +----------------------------------------------------+ Best States ------------- Heat Dissipation 28 Energy Generation 15 Energy Capacity 275 Matter Stores 300 Matter Capacity 300 Sight Range 16 Robot Scan Range 14 Terrain Scan Density 10 ECM Strength 1 Evasion (%) 40 Recoil Reduction 1 Item Schematics ----------------- None Robot Schematics ------------------ None Fabricated ------------ Nothing Alien Tech Used ----------------- None Achievements -------------- Maybe Next Time I'll Detach My Launcher Challenges ------------ None Game ------ Seed StealthTripodDeconstructor Manual? 0 Play Time 00:12:00 Cumulative 2.8 hours Start 2024.07.25 @ 00:11:51 End 2024.07.25 @ 00:23:11 Sessions 1 Manual Loads 0 Difficulty Rogue Special Mode None Game No. 12 Rogue 12 Adventurer 0 Explorer 0 Win Type - Total 0 Types 0/0/0/0/0/0/0/0/0 Lore% 2 Gallery% 6 Achievement% 5 Wizard Run 0 Options --------- Layout 0 ASCII 1 Keyboard 1 Movement Vi Keybinds 1 Fullscreen 2 Font 24/Proggy Map View 76x50 Zoom Use 0% Tactical HUD 1 Map Filters NONE Filters NONE Steam 1 RUN: 61b0dd20-4cc0-48bf-af33-f74063e7b884